Cogmind - Beta 16 @@@ ROGUE MODE // 2025.10.28 @ 23:27:57 Player: Bikerider58 Result: Destroyed by Y-54 Guardian with Gatling Laser Performance ------------- Evolutions (3) 1500 Regions Visited (5) 1000 Robots Destroyed (51) 255 Value Destroyed (1117) 1117 Prototype IDs (23) 460 Alien Tech Used (0) 0 Bonus (411) 411 TOTAL SCORE: 4743 Bonus ------- Follower Combat Kills 537 Friendly Fire -126 Cogmind --------- Core Integrity 0/700 Matter 280/300 Energy 100/100 System Corruption 4% Temperature Cool (18) Movement Core (50) Location -7/Storage Parts ------- > --- POWER (1) -------- (None) > --- PROPULSION (4) --- (None) > --- UTILITY (6) ------ Improved Signal Interpreter > --- WEAPON (2) ------- (None) > --- INVENTORY (5) ---- Cargo Legs Improved Sensor Array Plasma Cannon Great Axe Peak State ------------ > --- POWER ------------ Nuclear Core > --- PROPULSION ------- Light Treads Light Treads Compact Wheel Compact Wheel > --- UTILITY ---------- Improved Heat Sink Improved Cooling System Huge Storage Unit Target Analyzer Improved Propulsion Shielding Hardlight Generator > --- WEAPON ----------- Ion Cannon Plasma Cannon > --- INVENTORY -------- Light Treads Light Treads Advanced Treads Cargo Legs Armored Wheel Improved Cooling System Improved Cooling System Coolant Injector Medium Matter Pod Structural Scanner Advanced Visual Processing Unit Improved Sensor Array Seismic Detector Seismic Detector Tractor Beam V3-11A's Pendant Shock Rifle Heavy Ion Cannon Enhanced Autogun Enhanced Autogun Gauss Rifle Grenade Launcher Grenade Launcher Great Axe [Rating: 38] Favorites ----------- Power Ion Engine Engine Ion Engine Power Core Nuclear Core Propulsion Aluminum Leg Treads Light Treads Leg Aluminum Leg Wheel Compact Wheel Utility Large Storage Unit Device Seismic Detector Storage Large Storage Unit Processor Target Analyzer Protection Scrap Shield Weapon Assault Rifle Energy Gun Medium Laser Energy Cannon Ion Cannon Ballistic Gun Assault Rifle Launcher Grenade Launcher Impact Weapon Makeshift Hammer Slashing Weapon Great Axe Build | -11 -10 -10 -8 -7 -7 ------- Run | Yrd Mat Sub Mat Fac Sto Slots Evolved 6 | . . . 4 2 . Power . | . . . . . . Propulsion 2 | . . . 2 . . Utility 4 | . . . 2 2 . Weapon . | . . . . . . Parts Attached 55 | 6 8 8 15 17 1 Power 4 | 1 . . 2 1 . Engine 2 | 1 . . 1 . . Core 2 | . . . 1 1 . Reactor . | . . . . . . Propulsion 11 | 2 2 . 5 2 . Treads 6 | 2 . . 3 1 . Leg 2 | . 2 . . . . Wheel 3 | . . . 2 1 . Hover . | . . . . . . Flight . | . . . . . . Utility 19 | 1 2 4 2 9 1 Device 9 | 1 . 2 1 5 . Storage 2 | . 1 . 1 . . Processor 3 | . . . . 2 1 Hackware . | . . . . . . Protection 5 | . 1 2 . 2 . Artifact . | . . . . . . Weapon 21 | 2 4 4 6 5 . Energy Gun 5 | 1 . 1 3 . . Energy Cannon 3 | . . . 1 2 . Ballistic Gun 9 | 1 2 2 2 2 . Ballistic Cannon . | . . . . . . Launcher 2 | . 2 . . . . Special Weapon . | . . . . . . Impact Weapon 1 | . . 1 . . . Slashing Weapon 1 | . . . . 1 . Piercing Weapon . | . . . . . . Special Melee Weapon . | . . . . . . Unidentified Prototypes 5 | . . 1 4 . . Parts Lost 16 | . 1 . . 15 . Power 1 | . . . . 1 . Propulsion 6 | . . . . 6 . Utility 6 | . . . . 6 . Weapon 3 | . 1 . . 2 . Highest Loss Streak 12 | . 1 . . 12 . To Critical Strikes . | . . . . . . Average Backups 15 | 1 11 13 18 23 3 Power . | . . 1 1 . . Propulsion 2 | . . 1 2 4 1 Utility 7 | . 6 6 8 10 1 Weapon 4 | 1 3 3 5 7 1 Tool/Special . | . . . . . . Unused Backups 32 | . 7 5 3 14 3 Power 2 | . . 1 1 . . Propulsion 5 | . . 3 . 1 1 Utility 15 | . 4 1 . 8 2 Weapon 10 | . 3 . 2 5 . Tool/Special . | . . . . . . Average Slot Usage (%) 95 | . 99 99 84 92 8 Engine 11 | . 14 14 7 4 . Treads 8 | . 22 . 14 14 . Leg 15 | . 5 28 6 . . Wheel 3 | . . . 9 14 . Device 13 | . 14 13 8 19 . Storage 11 | . 10 13 9 6 . Protection 2 | . 2 . 9 6 . Energy Gun 5 | . 10 4 6 . . Ballistic Gun 12 | . 16 14 9 6 . Impact Weapon 4 | . . 9 . 1 . Peak Build Rating 38 | 6 9 15 29 38 9 Average Rating 16 | 4 7 13 22 32 6 On Entrance 9 | . 6 9 14 26 2 Avg Prop Armor Cover (%) 11 | . . . 8 13 . Naked Turns 7 | . . . . 5 2 Heaviest Build 125 | 10 31 33 118 125 4 Greatest Support 40 | 40 40 20 40 32 3 Greatest Overweight (x) 7 | . 2 1 7 7 1 Average Overweight (x) 1 | . . . 3 2 . Largest Inventory Capacity 25 | 5 15 15 25 25 5 Average Capacity 16 | 5 12 14 21 24 5 Most Carried 25 | 3 15 15 25 25 5 Average Carried 15 | 1 11 14 19 24 4 Final Capacity 25 | 5 15 15 25 5 5 Final Carried 25 | 2 15 15 25 5 5 Class Distribution -------------------- 70% | Mutant 29% | Scavenger-Mutant Dominant Class ---------------- Mutant | -10/Materials Mutant | -10/Subcaves Scavenger-Mutant | -8/Materials Scavenger-Mutant | -7/Factory Scavenger-Mutant | -7/Storage Resources | -11 -10 -10 -8 -7 -7 ----------- Run | Yrd Mat Sub Mat Fac Sto Matter Collected 1706 | 227 390 204 306 579 . Remotely . | . . . . . . Salvage Created 2008 | 85 454 181 508 780 . Parts 119 | 6 33 8 34 38 . Haulers Intercepted 4 | . . . 2 2 . Recyclers Shooed 3 | . . . 1 2 . Parts Field Recycled . | . . . . . . Retrieved Matter . | . . . . . . Parts Self-Destructed 4 | . . 4 . . . Prevented . | . . . . . . Parts Restored . | . . . . . . Kills | -11 -10 -10 -8 -7 -7 ------- Run | Yrd Mat Sub Mat Fac Sto Combat Hostiles Destroyed 27 | . 9 2 5 11 . Melee 2 | . . . . 2 . Guns 13 | . 6 . 3 4 . Cannons 4 | . . . . 4 . AOE 8 | . 3 2 2 1 . Classes Destroyed 15 | 2 4 1 4 4 . Worker 4 | . 2 . 1 1 . Builder 3 | . . . 3 . . Tunneler 2 | 1 . . . 1 . Hauler 4 | . . . 2 2 . Recycler 9 | 1 2 . 3 3 . Operator 1 | . . . 1 . . Watcher 1 | . 1 . . . . Swarmer 7 | . 3 2 2 . . Cutter 1 | . . . . 1 . Grunt 14 | . 6 . 2 6 . Duelist 1 | . . . . 1 . Sentry 2 | . . . 1 1 . Hunter 1 | . . . . 1 . Programmer 1 | . . . . 1 . Artisan 1 | . . 1 . . . Best Kill Streak 4 | 2 4 2 3 4 . Combat Bots Only 4 | . 3 2 2 4 . Max Kills in Single Turn 4 | 1 4 1 2 1 . Gunslinging . | . . . . . . Exploded 3 | . 3 1 2 1 . Melee 1 | . . . . 1 . Uniques/NPCs Destroyed . | . . . . . . Combat | -11 -10 -10 -8 -7 -7 -------- Run | Yrd Mat Sub Mat Fac Sto Hostile Shots Fired 321 | . 50 21 22 182 46 Missed 132 | . 15 8 11 79 19 Hits 189 | . 35 13 11 103 27 Melee 14 | . . . . 14 . Projectile 175 | . 35 13 11 89 27 AOE 1 | . . . . 1 . Critical Strikes 12 | . . . . 12 . Actively Blocked 2 | . . . . 2 . Damage Taken 3148 | . 458 113 211 2138 228 Core 819 | . 58 53 . 480 228 Absorbed by Shields 48 | . . . . 48 . Redirected to Shielding 119 | . . . . 119 . Core Remaining (%) 85 | 100 . 55 100 . . Volleys Fired 138 | 3 38 21 38 38 . Largest 2 | 2 2 2 2 2 . Hottest 140 | 70 70 80 83 140 . Shots Fired 252 | 6 74 24 74 74 . Gun 220 | 6 72 19 73 50 . Cannon 22 | . . . . 22 . Launcher 10 | . 2 5 1 2 . Special . | . . . . . . Kinetic 138 | 3 43 5 37 50 . Thermal 104 | 3 29 14 36 22 . Explosive 10 | . 2 5 1 2 . Electromagnetic . | . . . . . . Robot Hit Streak 11 | 2 11 11 6 9 . Robot Miss Streak 4 | 1 3 2 4 4 . Penetration Max 1 | . . . 1 . . Secondary Targets 1 | . 1 . . . . Max Gunslinging Chain 1 | . 1 . . . . Shots Hit Robots 175 | 4 48 16 38 69 . Core Hits 89 | 3 23 10 22 31 . Critical Kills 1 | . . . 1 . . Critical Parts Destroyed 1 | . . . . 1 . Critical Strikes 5 | . 1 . 3 1 . Burn 3 | . 1 . 2 . . Destroy 1 | . . . 1 . . Smash 1 | . . . . 1 . Melee Attacks 55 | . . 32 . 20 3 Impact 36 | . . 32 . 4 . Slashing 19 | . . . . 16 3 Piercing . | . . . . . . Sneak Attacks 8 | . . 1 . 7 . Combat Hostiles . | . . . . . . Follow-up Attacks . | . . . . . . Damage Inflicted 4182 | 45 786 614 770 1967 . Guns 2342 | 45 602 310 679 706 . Cannons 411 | . . . . 411 . Explosions 615 | . 184 229 65 137 . Melee 788 | . . 75 . 713 . Ramming 26 | . . . 26 . . Kinetic 1468 | 21 340 61 340 706 . Thermal 1285 | 24 262 249 339 411 . Explosive 615 | . 184 229 65 137 . Electromagnetic . | . . . . . . Impact 255 | . . 75 . 180 . Slashing 533 | . . . . 533 . Piercing . | . . . . . . Highest Corruption 4 | . . . . 4 4 Average Corruption 1 | . . . . 1 4 Corruption Purged . | . . . . . . Corruption Blocked . | . . . . . . Effects 4 | . . . . 4 . Message Errors 2 | . . . . 2 . Matter Fused 1 | . . . . 1 . Data Loss (minor) 1 | . . . . 1 . Overload Shots . | . . . . . . Overflow Damage 280 | . . 67 . 213 . Projectiles . | . . . . . . Explosions 50 | . . 32 . 18 . Melee 230 | . . 35 . 195 . Knockbacks 1 | . . 1 . . . Impact 1 | . . 1 . . . Kinetic . | . . . . . . Secondary . | . . . . . . Self-Inflicted Damage 55 | . . 3 13 39 . Shots 2 | . . 1 . 1 . Rammed 1 | . . . 1 . . Targets Rammed 1 | . . . 1 . . Kicked . | . . . . . . Crushed . | . . . . . . Highest Temperature 171 | 18 171 . 60 10 . Average Temperature 47 | 9 59 . 12 5 . Received Heat Transfer 649 | . 237 36 27 274 75 Siege Activations . | . . . . . . Martial Activations . | . . . . . . Shielding Activations . | . . . . . . Robots Disrupted . | . . . . . . Combat Hostiles . | . . . . . . Robots Corrupted 1 | . . . . 1 . Combat Hostiles . | . . . . . . Parts Fried 2 | . . . . 2 . Impact Corruptions 4 | . . 1 . 3 . Robots Melted . | . . . . . . Combat Hostiles . | . . . . . . Parts Melted 8 | . 1 . 3 4 . Heat Transferred 2809 | 74 851 300 851 733 . Parts Sabotaged . | . . . . . . Parts Stolen . | . . . . . . Parts Stripped . | . . . . . . Power Chain Reactions . | . . . . . . Alert | -11 -10 -10 -8 -7 -7 ------- Run | Yrd Mat Sub Mat Fac Sto Maximum Alert Level 1 | . . . 1 . . Low Security (%) 83 | 100 100 . 46 100 100 Level 1 16 | . . . 53 . . Level 2 . | . . . . . . Level 3 . | . . . . . . Level 4 . | . . . . . . Level 5 . | . . . . . . High Security . | . . . . . . Max Security . | . . . . . . Peak Influence 374 | 5 96 . 374 190 53 Initial 147 | . . . . 147 36 Average 91 | . 28 . 184 87 41 Influence Increases 1652 | 10 303 125 736 446 32 Destroy 0b10 Robot/C 840 | . 180 60 380 220 . Destroy 0b10 Robot/NC 145 | 10 25 . 75 35 . Destroy Leader 228 | . 52 . 112 64 . Allied During Kill 108 | . . 5 103 . . Successful Hack 100 | . 32 . 13 55 . Disable Machine 45 | . . . 30 . 15 Destroy Structure 51 | . 14 . 23 12 2 Lose Combat Pursuer 135 | . . 60 . 60 15 Influence Decreases 1604 | 10 303 125 412 689 65 Entered New Map 222 | . . . . 177 45 Time Decay 1122 | 10 293 105 332 362 20 Lost Part 160 | . 10 . . 150 . Lost Ally 100 | . . 20 80 . . Squads Dispatched 7 | . 2 . 2 3 . Investigation 3 | . 2 . 1 . . Extermination 1 | . . . . 1 . Reinforcement 3 | . . . 1 2 . Assault . | . . . . . . Garrison . | . . . . . . Intercept . | . . . . . . Searches Triggered . | . . . . . . Construction Impeded . | . . . . . . Haulers Reinforced . | . . . . . . Active Scanning Responses . | . . . . . . Cargo Convoy Interrupts 1 | . . . . 1 . Stealth | -11 -10 -10 -8 -7 -7 --------- Run | Yrd Mat Sub Mat Fac Sto Distress Signals 7 | . 2 . 4 1 . Communications Jammed . | . . . . . . Distress Signals . | . . . . . . Times Spotted 87 | . 13 8 21 37 8 Peak Tracking Total 15 | . 3 3 4 15 8 Tactical Retreats 6 | . . 1 . 4 1 Traps | -11 -10 -10 -8 -7 -7 ------- Run | Yrd Mat Sub Mat Fac Sto Traps Triggered 2 | . 1 . 1 . . Indirectly . | . . . . . . Trap Hack Attempts . | . . . . . . Triggered . | . . . . . . Disarmed . | . . . . . . Reprogrammed . | . . . . . . Reused . | . . . . . . Traps Extracted . | . . . . . . Installed . | . . . . . . Triggered . | . . . . . . Machines | -11 -10 -10 -8 -7 -7 ---------- Run | Yrd Mat Sub Mat Fac Sto Machines Disabled 4 | . . 1 2 . 1 Max in Single Turn 1 | . . 1 1 . 1 Machines Repaired . | . . . . . . Machines Dismantled . | . . . . . . Machines Sabotaged . | . . . . . . Overloaded Fab Kills . | . . . . . . Hacking | -11 -10 -10 -8 -7 -7 --------- Run | Yrd Mat Sub Mat Fac Sto Machines Accessed 27 | . 8 4 7 7 1 Terminals 17 | . 8 . 6 2 1 Fabricators 1 | . . . . 1 . Repair Stations . | . . . . . . Recycling Units 2 | . . . . 2 . Scanalyzers 3 | . . . 1 2 . Garrison Access . | . . . . . . Total Hacks 69 | . 20 11 21 16 1 Successful 37 | . 7 11 13 5 1 Failed 32 | . 13 . 8 11 . Catastrophic 2 | . 1 . . 1 . Database Lockouts . | . . . . . . Manual 32 | . 17 . 12 3 . Terminals 44 | . 20 . 18 5 1 Fabricators 1 | . . . . 1 . Repair Stations . | . . . . . . Recycling Units 5 | . . . . 5 . Scanalyzers 8 | . . . 3 5 . Garrison Access . | . . . . . . Terminal Hacks 18 | . 2 11 3 1 1 Record 9 | . . 9 . . . Prototype ID Bank 3 | . 1 . 2 . . Open Door 1 | . . 1 . . . Locate Traps 1 | . 1 . . . . Hauler Manifests 1 | . . . . 1 . Zone Layout 2 | . . . 1 . 1 Proto ID Catalog 1 | . . 1 . . . Fabricator Hacks 1 | . . . . 1 . Build 1 | . . . . 1 . Repair Station Hacks . | . . . . . . Recycling Unit Hacks 1 | . . . . 1 . Retrieve Components 1 | . . . . 1 . Scanalyzer 3 | . . . 3 . . Retrieve Study 3 | . . . 3 . . Garrison Access Hacks . | . . . . . . Unauthorized Hacks 14 | . 5 . 7 2 . Terminals 14 | . 5 . 7 2 . Botnet 2 | . . . 1 1 . Operators 1 | . . . 1 . . Skim 11 | . 5 . 5 1 . Fabricators . | . . . . . . Repair Stations . | . . . . . . Recycling Units . | . . . . . . Scanalyzers . | . . . . . . Garrison Access . | . . . . . . Data Cores Recovered 1 | . . . 1 . . Used 1 | . . . 1 . . Hacking Detections 22 | . 8 . 7 6 1 Full Trace Events 2 | . 2 . . . . Feedback Events . | . . . . . . Feedback Blocked . | . . . . . . Robot Schematics Acquired . | . . . . . . Robots Built . | . . . . . . Authchips . | . . . . . . Time . | . . . . . . Total Robot Build Rating . | . . . . . . Part Schematics Acquired . | . . . . . . Parts Built 2 | . . . . 2 . Authchips . | . . . . . . Time 28 | . . . . 28 . Total Part Build Rating 8 | . . . . 8 . Part Studies Acquired 3 | . . . 3 . . Parts Repaired . | . . . . . . Time . | . . . . . . Parts Recycled . | . . . . . . Recycled Matter . | . . . . . . Retrieved Matter . | . . . . . . Retrieved Components . | . . . . . . Parts Scanalyzed . | . . . . . . Part Schematics Acquired . | . . . . . . Parts Damaged . | . . . . . . Bothacking | -11 -10 -10 -8 -7 -7 ------------ Run | Yrd Mat Sub Mat Fac Sto Used RIF Installer . | . . . . . . Robots Hacked . | . . . . . . Non-combat . | . . . . . . Combat . | . . . . . . Robot Hacks Applied . | . . . . . . Relay Couplers Released . | . . . . . . Fabnet Peak Effective % . | . . . . . . Robots Rewired . | . . . . . . Allies Hacked . | . . . . . . Hacks Repelled . | . . . . . . Allies | -11 -10 -10 -8 -7 -7 -------- Run | Yrd Mat Sub Mat Fac Sto Total Allies 7 | . . 7 . . . Largest Group 4 | . . 4 4 . . Highest-Rated Group 76 | . . 76 76 . . Highest-Rated Ally 19 | . . 19 19 . . Total Orders . | . . . . . . Ally Attacks 109 | . . 17 92 . . Total Damage 1472 | . . 255 1217 . . Kills 21 | . . 2 19 . . Allies Corrupted . | . . . . . . Allies Melted . | . . . . . . Intel | -11 -10 -10 -8 -7 -7 ------- Run | Yrd Mat Sub Mat Fac Sto Active Infowar (turns) 2978 | 40 1107 488 813 530 . Sensors 495 | . . . . 495 . Structural 366 | . . . . 366 . Seismic 2970 | 40 1107 488 813 522 . Robot Analysis Total . | . . . . . . Derelict Logs Recovered 3 | . . 3 . . . Drone Launches . | . . . . . . Drone Recoveries . | . . . . . . Exploration | -11 -10 -10 -8 -7 -7 ------------- Run | Yrd Mat Sub Mat Fac Sto Turns Passed 5860 | 99 1107 2845 927 835 47 Spaces Moved 2740 | 52 441 1367 415 439 26 Core 43 | 6 . . . 11 26 Treads 446 | 46 382 . 18 . . Legs 1515 | . 59 1367 89 . . Wheels 736 | . . . 308 428 . Hover . | . . . . . . Flight . | . . . . . . Fastest Speed 50 | 50 160 120 135 50 50 Average Speed 173 | 147 164 189 181 133 71 Slowest Speed 320 | 160 260 190 320 195 100 Overloaded Moves . | . . . . . . Propulsion Burnouts . | . . . . . . Robots Hopped . | . . . . . . Potential Cave-ins . | . . . . . . Cave-ins Triggered . | . . . . . . Exploration Rate (%) 36 | 5 71 76 39 18 7 Regions Visited 5 Branch Regions 2 Pre-discovered Areas 5 | . 1 3 1 . . Known Exits Taken 2 | . . 1 . 1 . Unknown Exits Taken 3 | 1 1 . 1 . . Scrap Searched 1 | . . 1 . . . Spaces Dug 9 | . . . . 7 2 Terrain Destroyed 48 | . 13 16 5 12 2 Melee 9 | . . . . 7 2 Projectile . | . . . . . . AOE 39 | . 13 16 5 5 . Terrain Rammed . | . . . . . . Walls Destroyed . | . . . . . . Machines Disabled . | . . . . . . Actions | -11 -10 -10 -8 -7 -7 --------- Run | Yrd Mat Sub Mat Fac Sto Total 3519 | 66 748 1564 514 577 50 Wait 374 | 2 229 100 10 17 16 Move 2735 | 51 440 1366 414 438 26 Hop . | . . . . . . Pick Up 69 | 4 21 15 16 12 1 Fast Attach 33 | 4 5 6 9 8 1 Attach 13 | 2 1 1 1 7 1 Detach 5 | . . 1 1 2 1 Swap 44 | . 4 6 11 23 . Drop 50 | . 10 14 13 12 1 Fire 138 | 3 38 21 38 38 . Melee 55 | . . 32 . 20 3 Ram 1 | . . . 1 . . Kick . | . . . . . . Crush . | . . . . . . Escape Stasis . | . . . . . . Rewire . | . . . . . . Trap . | . . . . . . Miscellaneous 2 | . . 2 . . . Route ------- -11/Scrapyard -10/Materials (discovered 4 exits: [*Mat x2] / [*Min] / *Sub) -10/Subcaves (discovered 3 exits: *Mat x2 / Rec) -8/Materials -7/Factory (discovered 7 exits: Fac x4 / *Sto / *Low x2) -7/Storage History --------- Turn | Location | Event 8 | -11/Scrapyard | Discovered new exit (range 15) 100 | -11/Scrapyard | Entered Materials 256 | -10/Materials | Discovered new exit (range 5) 314 | -10/Materials | Build established: Mutant 377 | -10/Materials | Discovered new exit (range 16) 635 | -10/Materials | Discovered new exit (range 15) 684 | -10/Materials | Discovered new exit (range 8) 737 | -10/Materials | Learned Storage trap positions 802 | -10/Materials | Learned location of 2 exits from Mines 855 | -10/Materials | Learned location of 2 exits from Mines 930 | -10/Materials | Learned location of 2 exits from Subcaves 989 | -10/Materials | Learned location of Recycling (-7) 1032 | -10/Materials | Learned Storage emergency access door positions 1084 | -10/Materials | Learned location of 1 exit from Recycling 1207 | -10/Materials | Entered Subcaves 1208 | -10/Subcaves | Approached by a straggling Scientist 1208 | -10/Subcaves | Identified exit to Materials 1208 | -10/Subcaves | Identified exit to Recycling 1697 | -10/Subcaves | Discovered exit to Materials (range 5) 1706 | -10/Subcaves | Visited triangular shrine 1718 | -10/Subcaves | Found Prototype Device 1718 | -10/Subcaves | Identified V3-11A's Pendant 1723 | -10/Subcaves | Befriended Subdweller 2068 | -10/Subcaves | Befriended Subdweller 2075 | -10/Subcaves | Shifting Twisted Machinery released Mak. Hammer 2077 | -10/Subcaves | Shifting Twisted Machinery released Sub. Machine Gun 2303 | -10/Subcaves | Befriended Subdweller 2333 | -10/Subcaves | Befriended Subdweller 2573 | -10/Subcaves | Befriended Subdweller 2573 | -10/Subcaves | Befriended Subdweller 2597 | -10/Subcaves | Visited Clippyterm 2603 | -10/Subcaves | Learned 40 Factory zone layouts 2603 | -10/Subcaves | Learned Factory emergency access door positions 2738 | -10/Subcaves | Shifting Twisted Machinery released Enh. Flamer 2827 | -10/Subcaves | Shifting Twisted Machinery released Scrap Shield 2876 | -10/Subcaves | A swath of the cavern ceiling suddenly collapsed 3204 | -10/Subcaves | Learned location of Zion (-6) 3204 | -10/Subcaves | Met a Zionite searching for "candidates" 3439 | -10/Subcaves | Learned location of Mines (-9) 3693 | -10/Subcaves | Befriended Subdweller 3914 | -10/Subcaves | Visited 4L-MR0's lab 3933 | -10/Subcaves | Found Cargo Legs 4052 | -10/Subcaves | Entered Materials 4052 | -8/Materials | Accompanied by 4 allies 4052 | -8/Materials | Evolved 4 slots: Propulsion x2, Utility x2 4349 | -8/Materials | Build established: Scavenger-Mutant 4787 | -8/Materials | Lost 3 allies 4888 | -8/Materials | Learned Factory emergency access door positions 4910 | -8/Materials | Learned Factory trap positions 4924 | -8/Materials | Learned location of 1 exit from Extension 4950 | -8/Materials | Learned location of 1 exit from Extension 4955 | -8/Materials | Discovered new exit (range 16) 4979 | -8/Materials | Entered Factory 4979 | -7/Factory | Evolved 2 slots: Utility x2 4980 | -7/Factory | Identified exit to Storage 4980 | -7/Factory | Identified exit to Lower Caves 4981 | -7/Factory | Identified exit to Factory 4982 | -7/Factory | Loaded intel: 75 trap records 5786 | -7/Factory | Fabricated Mic. Nuclear Core? 5800 | -7/Factory | Cargo convoy interrupted 5809 | -7/Factory | Released all parts (3) 5812 | -7/Factory | Core integrity fell below 50% 5814 | -7/Factory | Entered Storage 5815 | -7/Storage | Loaded intel: 12 trap records 5839 | -7/Storage | Lost 12 parts (1p6n3u2w) 5855 | -7/Storage | Core integrity fell below 20% 5861 | -7/Storage | Destroyed by Y-54 Guardian with Gatling Laser Last Messages --------------- 05809_ Released Target Analyzer. 05809_ Released Huge Storage Unit. 05809_ Released Targeting Computer. [Achievement: Live, Flee, And Rebuild] 05811_ Penetrated by Slug. 05811_ K-01 Serf collects debris. LOCATION=STORAGE GOAL=ESCAPE Loading Storage trap records (x12)... 05816_ Connecting with Terminal... >>Layout(Zone) Retrieving Zone 3Q layout... Downloaded map data. 05829_ TF Node disabled. 05829_ Imp. Sensor Array tumbles out of TF Node. 05829_ Imp. Signal Interpreter tumbles out of TF Node. 05833_ Acquired Imp. Signal Interpreter. 05837_ Acquired Imp. Sensor Array. 05851_ Dropped Coolant Injector. Map ----- +----------------------------------------------------+ | ??????????????????????????????????????????????? | | ??????????????????????????????????????????????? | | ??????????????????????????????????????????????? | | ??????????????????????????????????????????????? | | ??????????????????????????????????????????????? | | ??????????????????????????????????????????????? | | ??????????????????????????????????????????????? | | ??????????????????????????????????????????????? | | ??????????????????????????????????????????????? | | ??????????????????????????????????????????????? | | ??????????????????????????????????????????????? | | ??????????????????????????????????????????????? | | ??????????????????????????????????????????????? | | ??????????????????????????????????????????????? | | ??????????????????????????????????????????????? | | ??????????????????????????????????????????????? | | ??????????????????????????????????????????????? | | ??????????????????????????????????????????????? | | ??????????????????????????????????????????????? | | ??????????????????????????????????????????????? | | ??????????????????????????????????????????????? | | ?????????????????#######??????????????????????? | | ?????????????????# ########+#####?????????? | | ?????????????????# g ????????? | | ????????######???# g g ????????? | | ????????#""""#???# @Y g ????????? | | ????????#""R"#???# #####+##???????????????? | | ??????###"" "###### ### ??????????????????? | | ??????# # ### ??????????????????? | | ??????# # g####" ??????????????????? | | ??????# # ### ??????????????????? | | ??????# + ### ??????????????????? | | ??????# """ """ # Y ### ??????????????????? | | ??????# """ """ # ### ??????????????????? | | ??????# """ """ # ######??????????????????? | | ??????############# ######??????????????????? | | ???????????###???## ##??????????????????????? | | ???????#####T#####! #??????????????????????? | | ???????# ^^ #??????????????????????? | | ???????# ^^ #??????????????????????? | | ???????# ^^ #??????????????????????? | | ???????#########"" #??????????????????????? | | ???????????????#########??????????????????????? | | ??????????????????????????????????????????????? | | ??????????????????????????????????????????????? | | ??????????????????????????????????????????????? | | ??????????????????????????????????????????????? | | ??????????????????????????????????????????????? | | ??????????????????????????????????????????????? | | ??????????????????????????????????????????????? | +----------------------------------------------------+ Best States ------------- Heat Dissipation 75 Energy Generation 14 Energy Capacity 275 Matter Stores 300 Matter Capacity 300 Sight Range 16 Robot Scan Range 15 Terrain Scan Density 10 Armor Coverage 950 Propulsion Shielding 66 Evasion (%) 50 Targeting Accuracy 5 Target Analysis 5 Recoil Reduction 3 Item Schematics ----------------- None Robot Schematics ------------------ None Fabricated ------------ Mic. Nuclear Core | x2 | -7/Factory | Preloaded Repaired ---------- Nothing Studied --------- Com. Wheel | -8/Materials | Hacked Lgt. Treads | -8/Materials | Hacked Grenade Launcher | -8/Materials | Hacked Alien Tech Used ----------------- None Achievements -------------- Art Critic Live, Flee, And Rebuild Mistaken Identity SUBSUB Survival Of The Most Covered That Tickles Challenges ------------ None Game ------ Seed CargoCompositeMembrane Manual? 0 Play Time 00:58:39 Cumulative 168.5 hours Start 2025.10.28 @ 22:13:54 End 2025.10.28 @ 23:27:57 Sessions 2 Manual Loads 0 Difficulty Rogue Special Mode None Game No. 80 Rogue 75 Adventurer 5 Explorer 0 Win Type - Total 3 Types 3/0/0/0/0/0/0/0/0/0 Lore% 59 Gallery% 63 Achievement% 40 Wizard Run 0 Options --------- Layout 1 ASCII 0 Keyboard 0 Movement Numpad Keybinds 0 Fullscreen 1 Font 24/Smallcaps Map View 50x35 Zoom Use 0% Tactical HUD 1 Map Filters NONE Filters NONE Steam 1 RUN: 642f3e0c-4c0d-4265-9731-e234f97d507b